{"text_format":"1","workbook":"xlsx","n_sheets":12,"sheets":["Reeks1A","Reeks1B","Reeks3","Reeks4","Reeks5","Reeks6","Kal.R1A","Kal.R1B","Kal.R3","Kal.R4","Kal.R5","Kal.R6"],"not_rendered":{"charts":0,"images":0,"macros":0,"external_links":0,"defined_names":0,"comments":0,"pivot_tables":0},"unopened":[],"bounds":{"document_bytes":16777216,"sheet_cells":100000,"rows_first":2000,"rows_last":500,"rows_between":2000,"halvings":0,"cell_chars":16384,"cell_head_chars":4096},"cells_cut":0,"cells_raw":0,"read":"whole","date_system":"1900"}

{"sheet":"Reeks1A","index":0,"n_rows":28,"n_cols":25,"rows_kept":28,"cut":false,"hidden":false,"merged":[]}
[null,"2013 - 2014 CK"]
[null,null,"Cop C.",null,"Dardha B.",null,"De Meyer J.",null,"Gelens J.",null,"Mathé M.",null,"Mollekens J.",null,"Robbé R.",null,"Serruys R.",null,"Talon A.",null,"Verachtert M."]
[null,"SPELERS",1,null,2,null,3,null,4,null,5,null,6,null,7,null,8,null,9,null,10,null,null,"Pa.","Pt."]
[null,null,"W","Z","W","Z","W","Z","W","Z","W","Z","W","Z","W","Z","W","Z","W","Z","W","Z"]
[1,"Cop C.",null,null,1,3,1,1,1,3,1,2,2,1,2,2,1,1,1,1,2,2,null,{"$f":"COUNT(C5:V5)","v":18},{"$f":"SUM(C5:V5)","v":28}]
[2,"Dardha B.",1,3,null,null,3,1,3,2,2,3,3,1,3,1,3,3,2,1,3,3,null,18,41]
[3,"De Meyer J.",3,3,3,1,null,null,3,3,3,1,2,3,1,2,2,3,1,1,1,2,null,18,38]
[4,"Gelens J.",1,3,2,1,1,1,null,null,3,3,2,2,3,2,3,1,1,1,3,2,null,18,35]
[5,"Mathé M.",2,3,1,2,3,1,1,1,null,null,1,1,1,2,2,1,1,1,1,1,null,18,26]
[6,"Mollekens J.",3,2,3,1,1,2,2,2,3,3,null,null,2,2,1,3,1,1,1,3,null,18,36]
[7,"Robbé R.",2,2,3,1,2,3,2,1,2,3,2,2,null,null,1,3,1,2,3,2,null,18,37]
[8,"Serruys R.",3,3,1,1,1,2,3,1,3,2,1,3,1,3,null,null,1,1,2,1,null,18,33]
[9,"Talon A.",3,3,3,2,3,3,3,3,3,3,3,3,2,3,3,3,null,null,3,3,null,18,52]
[10,"Verachtert M.",2,2,1,1,2,3,2,1,3,3,1,3,2,1,3,2,1,1,null,null,null,18,34]
[]
[null,"REEKS 1A",null,null,"Pa",null,"Pt"]
[1,"Talon A.",null,null,{"$f":"$X$13","v":18},null,{"$f":"$Y$13","v":52}]
[2,"Dardha B.",null,null,{"$f":"$X$6","v":18},null,{"$f":"$Y$6","v":41}]
[3,"De Meyer J.",null,null,{"$f":"$X$7","v":18},null,{"$f":"$Y$7","v":38}]
[4,"Robbé R.",null,null,{"$f":"$X$11","v":18},null,{"$f":"$Y$11","v":37}]
[5,"Mollekens J.",null,null,{"$f":"$X$10","v":18},null,{"$f":"$Y$10","v":36}]
[6,"Gelens J.",null,null,{"$f":"$X$8","v":18},null,{"$f":"$Y$8","v":35}]
[7,"Verachtert M.",null,null,{"$f":"$X$14","v":18},null,{"$f":"$Y$14","v":34}]
[8,"Serruys R.",null,null,{"$f":"$X$12","v":18},null,{"$f":"$Y$12","v":33}]
[9,"Cop C.",null,null,{"$f":"$X$5","v":18},null,{"$f":"$Y$5","v":28}]
[10,"Mathé M.",null,null,{"$f":"$X$9","v":18},null,{"$f":"$Y$9","v":26}]
[]
[{"$f":"SUM(E15:E26)","v":180},"aantal partijen"]

{"sheet":"Reeks1B","index":1,"n_rows":28,"n_cols":25,"rows_kept":28,"cut":false,"hidden":false,"merged":[]}
[null,"2013 - 2014 CK"]
[null,null,"Berghs H.",null,"Delvaux E.",null,"Embrechts J.",null,"Meulenbergs",null,"Michiels A.",null,"Pattyn L.",null,"Schuermans",null,"Stryckers F.",null,"V. Dingenen",null,"Verbert J."]
[null,"SPELERS",1,null,2,null,3,null,4,null,5,null,6,null,7,null,8,null,9,null,10,null,null,"Pa.","Pt."]
[null,null,"W","Z","W","Z","W","Z","W","Z","W","Z","W","Z","W","Z","W","Z","W","Z","W","Z"]
[1,"Berghs H.",null,null,3,1,3,3,1,1,1,2,3,2,1,1,1,1,2,3,2,3,null,{"$f":"COUNT(C5:V5)","v":18},{"$f":"SUM(C5:V5)","v":34}]
[2,"Delvaux E.",3,1,null,null,2,1,3,3,1,3,1,2,1,1,3,1,2,2,3,3,null,18,36]
[3,"Embrechts J.",1,1,3,2,null,null,3,2,1,1,3,2,1,1,1,1,2,2,1,2,null,18,30]
[4,"Meulenbergs J.",3,3,1,1,2,1,null,null,1,1,3,1,1,1,1,3,1,3,2,3,null,18,32]
[5,"Michiels A.",2,3,1,3,3,3,3,3,null,null,3,2,1,1,3,3,3,2,1,3,null,18,43]
[6,"Pattyn L.",2,1,2,3,2,1,3,1,2,1,null,null,1,1,3,1,3,3,1,3,null,18,34]
[7,"Schuermans R.",3,3,3,3,3,3,3,3,3,3,3,3,null,null,3,3,3,2,3,3,null,18,53]
[8,"Stryckers F.",3,3,3,1,3,3,1,3,1,1,3,1,1,1,null,null,3,2,3,1,null,18,37]
[9,"Van Dingenen M.",1,2,2,2,2,2,1,3,2,1,1,1,2,1,2,1,null,null,3,2,null,18,31]
[10,"Verbert J.",1,2,1,1,2,3,1,2,1,3,1,3,1,1,3,1,2,1,null,null,null,18,30]
[]
[null,"REEKS 1B",null,null,"Pa",null,"Pt"]
[1,"Schuermans R.",null,null,{"$f":"$X$11","v":18},null,{"$f":"$Y$11","v":53}]
[2,"Michiels A.",null,null,{"$f":"$X$9","v":18},null,{"$f":"$Y$9","v":43}]
[3,"Stryckers F.",null,null,{"$f":"$X$12","v":18},null,{"$f":"$Y$12","v":37}]
[4,"Delvaux E.",null,null,{"$f":"$X$6","v":18},null,{"$f":"$Y$6","v":36}]
[5,"Berghs H.",null,null,{"$f":"$X$5","v":18},null,{"$f":"$Y$5","v":34}]
[6,"Pattyn L.",null,null,{"$f":"$X$10","v":18},null,{"$f":"$Y$10","v":34}]
[7,"Meulenbergs J.",null,null,{"$f":"$X$8","v":18},null,{"$f":"$Y$8","v":32}]
[8,"Van Dingenen M.",null,null,{"$f":"$X$13","v":18},null,{"$f":"$Y$13","v":31}]
[9,"Embrechts J.",null,null,{"$f":"$X$7","v":18},null,{"$f":"$Y$7","v":30}]
[10,"Verbert J.",null,null,{"$f":"$X$14","v":18},null,{"$f":"$Y$14","v":30}]
[]
[{"$f":"SUM(E15:E26)","v":180},"aantal partijen"]

{"sheet":"Reeks3","index":2,"n_rows":32,"n_cols":28,"rows_kept":32,"cut":false,"hidden":false,"merged":[]}
[null,"2013 - 2014 CK"]
[null,null,"bye",null,"Crauwels F.",null,"Geerts H.",null,"Geerts P.",null,"Geylen L.",null,"Keynen L.",null,"Kuti K.",null,"Renty P.",null,"Roegiers L.",null,"Roofthoofd J.",null,"Vermaere L."]
[null,"SPELERS",1,null,2,null,3,null,4,null,5,null,6,null,7,null,8,null,9,null,10,null,11,null,null,null,"Pa.","Pt."]
[null,null,"W","Z","W","Z","W","Z","W","Z","W","Z","W","Z","W","Z","W","Z","W","Z","W","Z","W","Z"]
[1,"bye",null,null,null,null,null,null,null,null,null,null,null,null,null,null,null,null,null,null,null,null,null,null,null,null,{"$f":"COUNT(C5:Z5)","v":0},{"$f":"SUM(C5:Z5)","v":0}]
[2,"Crauwels F.",null,null,null,null,2,2,3,2,2,3,3,3,2,2,2,2,3,3,3,2,3,2,null,null,18,44]
[3,"Geerts H.",null,null,2,2,null,null,2,2,2,1,3,3,2,2,3,3,2,1,3,1,1,2,null,null,18,37]
[4,"Geerts P.",null,null,2,1,2,2,null,null,2,1,2,1,1,2,2,2,1,2,1,2,1,3,null,null,18,30]
[5,"Geylen L.",null,null,1,2,3,2,3,2,null,null,1,3,2,3,3,2,2,2,3,1,3,3,null,null,18,41]
[6,"Keynen L.",null,null,1,1,1,1,3,2,0,3,null,null,1,2,1,1,1,1,1,2,2,1,null,null,18,25]
[7,"Kuti K.",null,null,2,2,2,2,2,3,1,2,2,3,null,null,1,3,3,1,2,2,1,2,null,null,18,36]
[8,"Renty P.",null,null,2,2,1,1,2,2,2,1,3,3,1,3,null,null,2,2,2,3,2,3,null,null,18,37]
[9,"Roegiers L.",null,null,1,1,3,2,2,3,2,2,3,3,3,1,2,2,null,null,2,1,2,2,null,null,18,37]
[10,"Roofthoofd J.",null,null,2,1,3,1,2,3,3,1,2,3,2,2,1,2,3,2,null,null,3,3,null,null,18,39]
[11,"Vermaere L.",null,null,2,1,2,3,1,3,1,1,3,2,2,3,1,2,2,2,1,1,null,null,null,null,18,33]
[]
[]
[null,"REEKS 3",null,null,"Pa",null,"Pt"]
[1,"Crauwels F.",null,null,{"$f":"$AA$6","v":18},null,{"$f":"$AB$6","v":44}]
[2,"Geylen L.",null,null,{"$f":"$AA$9","v":18},null,{"$f":"$AB$9","v":41}]
[3,"Roofthoofd J.",null,null,{"$f":"$AA$14","v":18},null,{"$f":"$AB$14","v":39}]
[4,"Geerts H.",null,null,{"$f":"$AA$7","v":18},null,{"$f":"$AB$7","v":37}]
[5,"Renty P.",null,null,{"$f":"$AA$12","v":18},null,{"$f":"$AB$12","v":37}]
[6,"Roegiers L.",null,null,{"$f":"$AA$13","v":18},null,{"$f":"$AB$13","v":37}]
[7,"Kuti K.",null,null,{"$f":"$AA$11","v":18},null,{"$f":"$AB$11","v":36}]
[8,"Vermaere L.",null,null,{"$f":"$AA$15","v":18},null,{"$f":"$AB$15","v":33}]
[9,"Geerts P.",null,null,{"$f":"$AA$8","v":18},null,{"$f":"$AB$8","v":30}]
[10,"Keynen L.",null,null,{"$f":"$AA$10","v":18},null,{"$f":"$AB$10","v":25}]
[11,"bye",null,null,{"$f":"$AA$5","v":0},null,{"$f":"$AB$5","v":0}]
[]
[]
[{"$f":"SUM(E19:E30)","v":180},"aantal partijen"]

{"sheet":"Reeks4","index":3,"n_rows":32,"n_cols":28,"rows_kept":32,"cut":false,"hidden":false,"merged":[]}
[null,"2013 - 2014 CK"]
[null,null,"Bruynseels R.",null,"Dardha D.",null,"De Groot J.",null,"De Jonghe J.",null,"Hofman F.",null,"Lemaire D.",null,"Lemmens L.",null,"Neefs J.",null,"Ruschke W,",null,"Soetewey J.",null,"Van der Steen",null,"Wouters F."]
[null,"SPELERS",1,null,2,null,3,null,4,null,5,null,6,null,7,null,8,null,9,null,10,null,11,null,12,null,"Pa.","Pt."]
[null,null,"W","Z","W","Z","W","Z","W","Z","W","Z","W","Z","W","Z","W","Z","W","Z","W","Z","W","Z","W","Z"]
[1,"Bruynseels R.",null,null,2,1,3,1,3,3,1,1,1,1,2,1,3,3,3,3,3,2,3,1,1,3,{"$f":"COUNT(C5:Z5)","v":22},{"$f":"SUM(C5:Z5)","v":45}]
[2,"Dardha D.",3,2,null,null,3,3,3,3,3,1,3,3,3,2,3,2,3,3,3,3,3,3,3,2,22,60]
[3,"De Groot J.",3,1,1,1,null,null,3,1,1,2,3,1,3,2,1,2,3,3,3,2,2,3,3,3,22,47]
[4,"De Jonghe J.",1,1,1,1,3,1,null,null,3,2,3,1,2,3,3,1,3,3,1,2,2,3,3,1,22,44]
[5,"Hofman F.",3,3,3,1,2,3,2,1,null,null,3,2,1,2,2,3,3,3,1,1,1,1,2,2,22,45]
[6,"Lemeire D.",3,3,1,1,3,1,3,1,2,1,null,null,2,2,1,2,3,2,3,3,1,2,2,1,22,43]
[7,"Lemmens L.",3,2,2,1,2,1,1,2,2,3,2,2,null,null,2,2,3,3,3,3,1,2,2,2,22,46]
[8,"Neefs J.",1,1,2,1,2,3,3,1,1,2,2,3,2,2,null,null,3,3,3,1,1,1,3,3,22,44]
[9,"Ruschke W.",1,1,1,1,0,1,1,1,1,1,2,1,1,1,1,1,null,null,1,1,2,1,1,1,22,23]
[10,"Soetewey J.",2,1,1,1,2,1,2,3,3,3,1,1,1,1,3,1,3,3,null,null,2,1,2,2,22,40]
[11,"Van der Steen L.",3,1,1,1,1,2,1,2,3,3,2,3,2,3,3,3,3,2,3,2,null,null,2,3,22,49]
[12,"Wouters F.",1,3,2,1,1,1,3,1,2,2,3,2,2,2,1,1,3,3,2,2,1,2,null,null,22,41]
[]
[null,"REEKS 4",null,null,"Pa",null,"Pt"]
[1,"Dardha D.",null,null,{"$f":"$AA$6","v":22},null,{"$f":"$AB$6","v":60}]
[2,"Van der Steen L.",null,null,{"$f":"$AA$15","v":22},null,{"$f":"$AB$15","v":49}]
[3,"De Groot J.",null,null,{"$f":"$AA$7","v":22},null,{"$f":"$AB$7","v":47}]
[4,"Lemmens L.",null,null,{"$f":"$AA$11","v":22},null,{"$f":"$AB$11","v":46}]
[5,"Hofman F.",null,null,{"$f":"$AA$9","v":22},null,{"$f":"$AB$9","v":45}]
[6,"Bruynseels R.",null,null,{"$f":"$AA$5","v":22},null,{"$f":"$AB$5","v":45}]
[7,"Neefs J.",null,null,{"$f":"$AA$12","v":22},null,{"$f":"$AB$12","v":44}]
[8,"De Jonghe J.",null,null,{"$f":"$AA$8","v":22},null,{"$f":"$AB$8","v":44}]
[9,"Lemeire D.",null,null,{"$f":"$AA$10","v":22},null,{"$f":"$AB$10","v":43}]
[10,"Wouters F.",null,null,{"$f":"$AA$16","v":22},null,{"$f":"$AB$16","v":41}]
[11,"Soetewey J.",null,null,{"$f":"$AA$14","v":22},null,{"$f":"$AB$14","v":40}]
[12,"Ruschke W.",null,null,{"$f":"$AA$13","v":22},null,{"$f":"$AB$13","v":23}]
[]
[{"$f":"SUM(E19:E30)","v":264},"aantal partijen"]

{"sheet":"Reeks5","index":4,"n_rows":32,"n_cols":28,"rows_kept":32,"cut":false,"hidden":false,"merged":[]}
[null,"2013 - 2014 CK"]
[null,null,"Brants R.",null,"Daponte P.",null,"Goddé M.",null,"Goddé P.",null,"Hellemans R.",null,"Ilegems J.",null,"Meeus J.",null,"Mertens F.",null,"Meulemeester",null,"Pynaerts H.",null,"Van Dyck Y.",null,"Vingerhoets W?"]
[null,"SPELERS",1,null,2,null,3,null,4,null,5,null,6,null,7,null,8,null,9,null,10,null,11,null,12,null,"Pa.","Pt."]
[null,null,"W","Z","W","Z","W","Z","W","Z","W","Z","W","Z","W","Z","W","Z","W","Z","W","Z","W","Z","W","Z"]
[1,"Brants R.",null,null,3,1,1,1,3,1,3,1,1,3,2,2,1,1,1,1,1,1,1,3,3,3,{"$f":"COUNT(C5:Z5)","v":22},{"$f":"SUM(C5:Z5)","v":38}]
[2,"Daponte P.",3,1,null,null,1,1,1,3,1,2,3,1,1,1,1,1,1,3,1,3,3,1,3,3,22,39]
[3,"Goddé M.",3,3,3,3,null,null,3,3,3,2,3,3,3,2,3,3,3,3,3,3,3,3,3,2,22,63]
[4,"Goddé P.",3,1,1,3,1,1,null,null,2,3,3,3,2,3,1,1,3,2,1,2,3,1,3,3,22,46]
[5,"Hellemans R.",3,1,2,3,2,1,1,2,null,null,3,1,2,1,3,1,2,2,1,2,2,1,2,2,22,40]
[6,"Ilegems J.",1,3,3,1,1,1,1,1,3,1,null,null,1,3,1,1,3,1,3,1,2,1,3,1,22,37]
[7,"Meeus J.",2,2,3,3,2,1,1,2,3,2,1,3,null,null,1,3,3,3,3,3,2,3,3,2,22,51]
[8,"Mertens F.",3,3,3,3,1,1,3,3,3,1,3,3,1,3,null,null,3,1,2,3,3,3,1,1,22,51]
[9,"Meulemeester L.",3,3,1,3,1,1,2,1,2,2,3,1,1,1,3,1,null,null,3,1,1,3,2,2,22,41]
[10,"Pynaerts H.",3,3,1,3,1,1,2,3,2,3,3,1,1,1,1,2,3,1,null,null,3,3,1,3,22,45]
[11,"Van Dyck Y.",1,3,3,1,1,1,3,1,3,2,3,2,1,2,1,1,1,3,1,1,null,null,3,3,22,41]
[12,"Vingerhoets W.",1,1,1,1,2,1,1,1,2,2,3,1,2,1,3,3,2,2,1,3,1,1,null,null,22,36]
[]
[null,"REEKS 5",null,null,"Pa",null,"Pt"]
[1,"Goddé M.",null,null,{"$f":"$AA$7","v":22},null,{"$f":"$AB$7","v":63}]
[2,"Mertens F.",null,null,{"$f":"$AA$12","v":22},null,{"$f":"$AB$12","v":51}]
[3,"Meeus J.",null,null,{"$f":"$AA$11","v":22},null,{"$f":"$AB$11","v":51}]
[4,"Goddé P.",null,null,{"$f":"$AA$8","v":22},null,{"$f":"$AB$8","v":46}]
[5,"Pynaerts H.",null,null,{"$f":"$AA$14","v":22},null,{"$f":"$AB$14","v":45}]
[6,"Van Dyck Y.",null,null,{"$f":"$AA$15","v":22},null,{"$f":"$AB$15","v":41}]
[7,"Meulemeester L.",null,null,{"$f":"$AA$13","v":22},null,{"$f":"$AB$13","v":41}]
[8,"Hellemans R.",null,null,{"$f":"$AA$9","v":22},null,{"$f":"$AB$9","v":40}]
[9,"Daponte P.",null,null,{"$f":"$AA$6","v":22},null,{"$f":"$AB$6","v":39}]
[10,"Brants R.",null,null,{"$f":"$AA$5","v":22},null,{"$f":"$AB$5","v":38}]
[11,"Ilegems J.",null,null,{"$f":"$AA$10","v":22},null,{"$f":"$AB$10","v":37}]
[12,"Vingerhoets W.",null,null,{"$f":"$AA$16","v":22},null,{"$f":"$AB$16","v":36}]
[]
[{"$f":"SUM(E19:E30)","v":264},"aantal partijen"]

{"sheet":"Reeks6","index":5,"n_rows":32,"n_cols":28,"rows_kept":32,"cut":false,"hidden":false,"merged":[]}
[null,"2013 - 2014 CK"]
[null,null,"Brack Y.",null,"Dams L.",null,"Heyndrickx R.",null,"Lens L.",null,"Leys F.",null,"bye",null,"Roelants W.",null,"Uyt d.Bogaard",null,"V. Den Brande",null,"bye",null,"V.Tendeloo",null,"Vervaeke P."]
[null,"SPELERS",1,null,2,null,3,null,4,null,5,null,6,null,7,null,8,null,9,null,10,null,11,null,12,null,"Pa.","Pt."]
[null,null,"W","Z","W","Z","W","Z","W","Z","W","Z","W","Z","W","Z","W","Z","W","Z","W","Z","W","Z","W","Z"]
[1,"Brack Y.",null,null,1,null,1,null,null,1,null,3,null,null,null,1,3,null,3,null,null,null,3,null,null,3,{"$f":"COUNT(C5:Z5)","v":9},{"$f":"SUM(C5:Z5)","v":19}]
[2,"Dams L.",null,3,null,null,null,1,3,null,null,2,null,null,null,3,3,null,3,null,null,null,3,null,null,1,9,22]
[3,"Heyndrickx R.",null,3,3,null,null,null,3,3,1,1,null,null,3,1,2,1,3,3,null,null,2,1,1,3,16,34]
[4,"Lens L.",3,null,null,1,1,1,null,null,3,1,null,null,3,1,2,3,3,3,null,null,2,2,1,3,16,33]
[5,"Leys F.",1,null,2,null,3,3,3,1,null,null,null,null,3,3,3,3,1,3,null,null,3,3,3,3,16,41]
[6,"bye",null,null,null,null,null,null,null,null,null,null,null,null,null,null,null,null,null,null,null,null,null,null,null,null,0,0]
[7,"Roelants W.",3,null,1,null,3,1,3,1,1,1,null,null,null,null,3,1,1,1,null,null,3,3,1,3,16,30]
[8,"Uyt den Bogaard",null,1,null,1,3,2,1,2,1,1,null,null,3,1,null,null,2,2,null,null,1,2,1,1,16,25]
[9,"Van Den Branden",null,1,null,0,1,1,1,0,1,3,null,null,3,3,2,2,null,null,null,null,1,1,3,3,16,26]
[10,"Van Tendeloo R.",null,1,null,1,3,2,2,2,1,1,null,null,1,1,2,3,3,3,null,null,null,null,2,1,16,29]
[11,"Vervaeke P.",1,null,3,null,1,3,1,3,1,1,null,null,1,3,3,3,1,1,null,null,3,2,null,null,16,31]
[]
[]
[null,"REEKS 6",null,null,"Pa",null,"Pt"]
[1,"Leys F.",null,null,{"$f":"$AA$9","v":16},null,{"$f":"$AB$9","v":41}]
[2,"Heyndrickx R.",null,null,{"$f":"$AA$7","v":16},null,{"$f":"$AB$7","v":34}]
[3,"Lens L.",null,null,{"$f":"$AA$8","v":16},null,{"$f":"$AB$8","v":33}]
[4,"Vervaeke P.",null,null,{"$f":"$AA$15","v":16},null,{"$f":"$AB$15","v":31}]
[5,"Roelants W.",null,null,{"$f":"$AA$11","v":16},null,{"$f":"$AB$11","v":30}]
[6,"Van Tendeloo R.",null,null,{"$f":"$AA$14","v":16},null,{"$f":"$AB$14","v":29}]
[7,"Van Den Branden",null,null,{"$f":"$AA$13","v":16},null,{"$f":"$AB$13","v":26}]
[8,"Uyt den Bogaard",null,null,{"$f":"$AA$12","v":16},null,{"$f":"$AB$12","v":25}]
[9,"Dams L.",null,null,{"$f":"$AA$6","v":9},null,{"$f":"$AB$6","v":22}]
[10,"Brack Y.",null,null,{"$f":"$AA$5","v":9},null,{"$f":"$AB$5","v":19}]
[11,"bye"]
[]
[]
[{"$f":"SUM(E19:E30)","v":146},"aantal partijen"]

{"sheet":"Kal.R1A","index":6,"n_rows":64,"n_cols":12,"rows_kept":64,"cut":false,"hidden":false,"merged":[]}
[null,"REEKS 1A",null,"2013 - 2014 CK"]
[]
[null,"Ronde 1",null,"13/11/2013.",null,null,null,"Ronde 10",null,"19/02/2014."]
[1,"Talon A.",null,"Dardha B.",3,1,null,"Dardha B.",null,"Talon A.",2,2]
[2,"Robbé R.*",null,"Serruys R.",1,3,null,"Serruys R.",null,"Robbé R.",1,3]
[3,"De Meyer J.",null,"Mollekens J.",2,2,null,"Mollekens J.",null,"De Meyer J.",1,3]
[4,"Verachtert M.",null,"Cop C.",2,2,null,"Cop C.",null,"Verachtert M.",2,2]
[5,"Mathé M.",null,"Gelens J.",1,3,null,"Gelens J.",null,"Mathé M.",3,1]
[]
[null,"Ronde 2",null,"20/11/2013.",null,null,null,"Ronde 11",null,"26/02/2014."]
[1,"Dardha B.",null,"Gelens J.",3,1,null,"Gelens J.",null,"Dardha B.",2,2]
[2,"Cop C.",null,"Mathé M.",1,3,null,"Mathé M.",null,"Cop C.",2,2]
[3,"Mollekens J.",null,"Verachtert M.",1,3,null,"Verachtert M.",null,"Mollekens J.",1,3]
[4,"Serruys R.",null,"De Meyer J.",1,3,null,"De Meyer J.",null,"Serruys R.",2,2]
[5,"Talon A.",null,"Robbé R.",2,2,null,"Robbé R.",null,"Talon A.",1,3]
[]
[null,"Ronde 3",null,"27/11/2013.",null,null,null,"Ronde 12",null,"12/03/2014."]
[1,"Robbé R.",null,"Dardha B.",3,1,null,"Dardha B.",null,"Robbé R.",3,1]
[2,"De Meyer J.",null,"Talon A.",1,3,null,"Talon A.",null,"De Meyer J.",3,1]
[3,"Verachtert M.",null,"Serruys R.",3,1,null,"Serruys R.",null,"Verachtert M.",2,2]
[4,"Mathé M.",null,"Mollekens J.",1,3,null,"Mollekens J.",null,"Mathé M.",3,1]
[5,"Gelens J.",null,"Cop C.",1,3,null,"Cop C.",null,"Gelens J.",1,3]
[]
[null,"Ronde 4",null,"11/12/2013.",null,null,null,"Ronde 13",null,"19/03/2014."]
[1,"Dardha B.",null,"Cop C.",1,3,null,"Cop C.",null,"Dardha B.",1,3]
[2,"Mollekens J.",null,"Gelens J.",2,2,null,"Gelens J.",null,"Mollekens J.",2,2]
[3,"Serruys R.",null,"Mathé M.",3,1,null,"Mathé M.",null,"Serruys R.",2,2]
[4,"Talon A.",null,"Verachtert M.",3,1,null,"Verachtert M.",null,"Talon A.",1,3]
[5,"Robbé R.",null,"De Meyer J.",2,2,null,"De Meyer J.",null,"Robbé R.",1,3]
[]
[null,"Ronde 5",null,"18/12/2013.",null,null,null,"Ronde 14",null,"26/03/2014."]
[1,"De Meyer J.",null,"Dardha B.",3,1,null,"Dardha B.",null,"De Meyer J.",3,1]
[2,"Verachtert M.",null,"Robbé R.**",2,2,null,"Robbé R.",null,"Verachtert M.",3,1]
[3,"Mathé M.",null,"Talon A.",1,3,null,"Talon A.",null,"Mathé M.",3,1]
[4,"Gelens J.",null,"Serruys R.",3,1,null,"Serruys R.",null,"Gelens J.",3,1]
[5,"Cop C.",null,"Mollekens J.",2,2,null,"Mollekens J.",null,"Cop C.",3,1]
[]
[null,"Ronde 6",null,"08/01/2014.",null,null,null,"Ronde 15",null,"02/04/2014."]
[1,"Dardha B.",null,"Mollekens J.",3,1,null,"Mollekens J.",null,"Dardha B.",3,1]
[2,"Serruys R.",null,"Cop C.",3,1,null,"Cop C.",null,"Serruys R.",1,3]
[3,"Talon A.",null,"Gelens J.",3,1,null,"Gelens J.",null,"Talon A.",1,3]
[4,"Robbé R.*",null,"Mathé M.",2,2,null,"Mathé M.",null,"Robbé R.",1,3]
[5,"De Meyer J.",null,"Verachtert M.",1,3,null,"Verachtert M.",null,"De Meyer J.",2,2]
[]
[null,"Ronde 7",null,"22/01/2014.",null,null,null,"Ronde 16",null,"16/04/2014."]
[1,"Verachtert M.",null,"Dardha B.",1,3,null,"Dardha B.",null,"Verachtert M.",3,1]
[2,"Mathé M.",null,"De Meyer J.",3,1,null,"De Meyer J.",null,"Mathé M.",3,1]
[3,"Gelens J.",null,"Robbé R.",3,1,null,"Robbé R.",null,"Gelens J.",2,2]
[4,"Cop C.",null,"Talon A.",1,3,null,"Talon A.",null,"Cop C.",3,1]
[5,"Mollekens J.",null,"Serruys R.",1,3,null,"Serruys R.",null,"Mollekens J.",1,3]
[]
[null,"Ronde 8",null,"29/01/2014.",null,null,null,"Ronde 17",null,"23/04/2014."]
[1,"Dardha B.",null,"Serruys R.*",3,1,null,"Serruys R.*",null,"Dardha B.",1,3]
[2,"Talon A.",null,"Mollekens J.",3,1,null,"Mollekens J.",null,"Talon A.",1,3]
[3,"Robbé R.",null,"Cop C.",2,2,null,"Cop C.",null,"Robbé R.",2,2]
[4,"De Meyer J.",null,"Gelens J.",3,1,null,"Gelens J.",null,"De Meyer J.",1,3]
[5,"Verachtert M.",null,"Mathé M.",3,1,null,"Mathé M.",null,"Verachtert M.",1,3]
[]
[null,"Ronde 9",null,"05/02/2014.",null,null,null,"Ronde 18",null,"30/04/2014."]
[1,"Mathé M.",null,"Dardha B.",1,3,null,"Dardha B.",null,"Mathé M.",2,2]
[2,"Gelens J.",null,"Verachtert M.",3,1,null,"Verachtert M.",null,"Gelens J.",2,2]
[3,"Cop C.",null,"De Meyer J.",1,3,null,"De Meyer J.",null,"Cop C.",3,1]
[4,"Mollekens J.",null,"Robbé R.",2,2,null,"Robbé R.",null,"Mollekens J.",2,2]
[5,"Serruys R.",null,"Talon A.",1,3,null,"Talon A.",null,"Serruys R.*",3,1]

{"sheet":"Kal.R1B","index":7,"n_rows":64,"n_cols":12,"rows_kept":64,"cut":false,"hidden":false,"merged":[]}
[null,"REEKS 1B",null,"2013 - 2014 CK"]
[]
[null,"Ronde 1",null,"13/11/2013.",null,null,null,"Ronde 10",null,"19/02/2014."]
[1,"Berghs H.",null,"Schuermans R*",1,3,null,"Schuermans R.",null,"Berghs H.",3,1]
[2,"Verbert J.",null,"Meulenbergs J.",1,3,null,"Meulenbergs J.",null,"Verbert J.",2,2]
[3,"V.Dingenen M.",null,"Stryckers F.",2,2,null,"Stryckers F.",null,"V.Dingenen M.",3,1]
[4,"Pattyn L.",null,"Michiels A.",2,2,null,"Michiels A.",null,"Pattyn L.",3,1]
[5,"Embrechts J.",null,"Delvaux E.",3,1,null,"Delvaux E.",null,"Embrechts J.",2,2]
[]
[null,"Ronde 2",null,"20/11/2013.",null,null,null,"Ronde 11",null,"26/02/2014."]
[1,"Schuermans R.",null,"Delvaux E.",3,1,null,"Delvaux E.",null,"Schuermans R.",1,3]
[2,"Michiels A.",null,"Embrechts J.",3,1,null,"Embrechts J.",null,"Michiels A.",1,3]
[3,"Stryckers F.",null,"Pattyn L.",3,1,null,"Pattyn L.",null,"Stryckers F.*",3,1]
[4,"Meulenbergs J.",null,"V.Dingenen M.",1,3,null,"V.Dingenen M.",null,"Meulenbergs J.",1,3]
[5,"Berghs H.",null,"Verbert J.",2,2,null,"Verbert J.",null,"Berghs H.",1,3]
[]
[null,"Ronde 3",null,"27/11/2013.",null,null,null,"Ronde 12",null,"12/03/2014."]
[1,"Verbert J.",null,"Schuermans R*",1,3,null,"Schuermans R.",null,"Verbert J.",3,1]
[2,"V.Dingenen M.",null,"Berghs H.",1,3,null,"Berghs H.",null,"V.Dingenen M.",2,2]
[3,"Pattyn L.",null,"Meulenbergs J.",3,1,null,"Meulenbergs J.",null,"Pattyn L.",3,1]
[4,"Embrechts J.",null,"Stryckers F.",1,3,null,"Stryckers F.",null,"Embrechts J.",3,1]
[5,"Delvaux E.",null,"Michiels A.",1,3,null,"Michiels A.",null,"Delvaux E.",1,3]
[]
[null,"Ronde 4",null,"11/12/2013.",null,null,null,"Ronde 13",null,"19/03/2014."]
[1,"Schuermans R.",null,"Michiels A.",3,1,null,"Michiels A.",null,"Schuermans R.",1,3]
[2,"Stryckers F.",null,"Delvaux E.",3,1,null,"Delvaux E.",null,"Stryckers F.",3,1]
[3,"Meulenbergs J.",null,"Embrechts J.",2,2,null,"Embrechts J.",null,"Meulenbergs J.",3,1]
[4,"Berghs H.",null,"Pattyn L.",3,1,null,"Pattyn L.",null,"Berghs H.",2,2]
[5,"Verbert J.",null,"V.Dingenen M*",2,2,null,"V.Dingenen M.",null,"Verbert J.",3,1]
[]
[null,"Ronde 5",null,"18/12/2013.",null,null,null,"Ronde 14",null,"26/03/2014."]
[1,"V.Dingenen M.",null,"Schuermans R.",2,2,null,"Schuermans R.",null,"V.Dingenen M.",3,1]
[2,"Pattyn L.",null,"Verbert J.",1,3,null,"Verbert J.",null,"Pattyn L.",1,3]
[3,"Embrechts J.",null,"Berghs H.",1,3,null,"Berghs H.",null,"Embrechts J.",3,1]
[4,"Delvaux E.",null,"Meulenbergs J.",3,1,null,"Meulenbergs J.",null,"Delvaux E.",1,3]
[5,"Michiels A.",null,"Stryckers F.",3,1,null,"Stryckers F.",null,"Michiels A.",1,3]
[]
[null,"Ronde 6",null,"08/01/2014.",null,null,null,"Ronde 15",null,"02/04/2014."]
[1,"Schuermans R.",null,"Stryckers F.",3,1,null,"Stryckers F.",null,"Schuermans R.",1,3]
[2,"Meulenbergs J.",null,"Michiels A.",1,3,null,"Michiels A.",null,"Meulenbergs J.",3,1]
[3,"Berghs H.",null,"Delvaux E.",3,1,null,"Delvaux E.",null,"Berghs H.",3,1]
[4,"Verbert J.",null,"Embrechts J.",2,2,null,"Embrechts J.",null,"Verbert J.",1,3]
[5,"V.Dingenen M.",null,"Pattyn L.",1,3,null,"Pattyn L.",null,"V.Dingenen M.",3,1]
[]
[null,"Ronde 7",null,"22/01/2014.",null,null,null,"Ronde 16",null,"16/04/2014."]
[1,"Pattyn L.",null,"Schuermans R.",1,3,null,"Schuermans R.",null,"Pattyn L.",3,1]
[2,"Embrechts J.",null,"V.Dingenen M.",2,2,null,"V.Dingenen M.",null,"Embrechts J.",2,2]
[3,"Delvaux E.",null,"Verbert J.",3,1,null,"Verbert J.",null,"Delvaux E.",1,3]
[4,"Michiels A.",null,"Berghs H.",2,2,null,"Berghs H.",null,"Michiels A.",1,3]
[5,"Stryckers F.",null,"Meulenbergs J.",1,3,null,"Meulenbergs J.",null,"Stryckers F.",1,3]
[]
[null,"Ronde 8",null,"29/01/2014.",null,null,null,"Ronde 17",null,"23/04/2014."]
[1,"Schuermans R",null,"Meulenbergs J.",3,1,null,"Meulenbergs J.",null,"Schuermans R.",1,3]
[2,"Berghs H.",null,"Stryckers F.",1,3,null,"Stryckers F.",null,"Berghs H.",3,1]
[3,"Verbert J.",null,"Michiels A.*",1,3,null,"Michiels A.",null,"Verbert J.",1,3]
[4,"V.Dingenen M.",null,"Delvaux E.",2,2,null,"Delvaux E.",null,"V.Dingenen M.",2,2]
[5,"Pattyn L.",null,"Embrechts J.",2,2,null,"Embrechts J.",null,"Pattyn L.",3,1]
[]
[null,"Ronde 9",null,"05/02/2014.",null,null,null,"Ronde 18",null,"30/04/2014."]
[1,"Embrechts J.",null,"Schuermans *",1,3,null,"Schuermans R.",null,"Embrechts J.",3,1]
[2,"Delvaux E.",null,"Pattyn L.",1,3,null,"Pattyn L.",null,"Delvaux E.",2,2]
[3,"Michiels A.",null,"V.Dingenen M.",3,1,null,"V.Dingenen M.",null,"Michiels A.",2,2]
[4,"Stryckers F.",null,"Verbert J.",3,1,null,"Verbert J.",null,"Stryckers F.",3,1]
[5,"Meulenbergs J.",null,"Berghs H.",3,1,null,"Berghs H.",null,"Meulenbergs J.",1,3]

{"sheet":"Kal.R3","index":8,"n_rows":89,"n_cols":12,"rows_kept":89,"cut":false,"hidden":false,"merged":[]}
[null,"REEKS 3",null,"2013 - 2014 CK"]
[]
[null,"Ronde 1",null,"13/11/2013.",null,null,null,"Ronde 12",null,"12/03/2014."]
[1,"bye",null,"Keynen L.",null,null,null,"Keynen L.",null,"bye"]
[2,"Kuti K.*",null,"Geerts P.",2,2,null,"Geerts P.",null,"Kuti K.",1,3]
[3,"Geylen L.",null,"Geerts H.",3,1,null,"Geerts H.",null,"Geylen L.",2,2]
[4,"bye",null,"Renty P.",null,null,null,"Renty P.",null,"bye"]
[5,"Roofthoofd J.",null,"Crauwels F.",2,2,null,"Crauwels F.",null,"Roofthoofd J.",3,1]
[6,"Roegiers L.",null,"Vermaere L.",2,2,null,"Vermaere L.",null,"Roegiers L.",2,2]
[null,null,null,null,null,null,null,""]
[null,"Ronde 2",null,"20/11/2013.",null,null,null,"Ronde 13",null,"19/03/2014."]
[1,"Keynen L.",null,"Vermaere L.",2,2,null,"Vermaere L.",null,"Keynen L.",3,1]
[2,"Crauwels F.",null,"Roegiers L.",3,1,null,"Roegiers L.",null,"Crauwels F.",1,3]
[3,"Renty P.",null,"Roofthoofd J.",2,2,null,"Roofthoofd J.",null,"Renty P.",1,3]
[4,"Geerts H.",null,"bye",null,null,null,"bye",null,"Geerts H."]
[5,"Geerts P.",null,"Geylen L.",2,2,null,"Geylen L.",null,"Geerts P.",3,1]
[6,"bye",null,"Kuti K.",null,null,null,"Kuti K.",null,"bye"]
[]
[null,"Ronde 3",null,"27/11/2013.",null,null,null,"Ronde 14",null,"26/03/2014."]
[1,"Kuti K.",null,"Keynen L.",2,2,null,"Keynen L.",null,"Kuti K.",1,3]
[2,"Geylen L.",null,"bye",null,null,null,"bye",null,"Geylen L."]
[3,"bye",null,"Geerts P.",null,null,null,"Geerts P.",null,"bye"]
[4,"Roofthoofd J.",null,"Geerts H.",3,1,null,"Geerts H.",null,"Roofthoofd J.",3,1]
[5,"Roegiers L.",null,"Renty P.",2,2,null,"Renty P.",null,"Roegiers L.",2,2]
[6,"Vermaere L.*",null,"Crauwels F.",2,2,null,"Crauwels F.",null,"Vermaere L.",3,1]
[]
[null,"Ronde 4",null,"11/12/2013.",null,null,null,"Ronde 15",null,"02/04/2014."]
[1,"Keynen L.",null,"Crauwels F.",1,3,null,"Crauwels F.",null,"Keynen L.",3,1]
[2,"Renty P.*",null,"Vermaere L.",2,2,null,"Vermaere L.",null,"Renty P.",1,3]
[3,"Geerts H.",null,"Roegiers L.",2,2,null,"Roegiers L.",null,"Geerts H.",3,1]
[4,"Geerts P.",null,"Roofthoofd J.",1,3,null,"Roofthoofd J.",null,"Geerts P.",2,2]
[5,"bye",null,"bye",null,null,null,"bye",null,"bye"]
[6,"Kuti K.",null,"Geylen L.",1,3,null,"Geylen L.",null,"Kuti K.",2,2]
[]
[null,"Ronde 5",null,"18/12/2013.",null,null,null,"Ronde 16",null,"16/04/2014."]
[1,"Geylen L.",null,"Keynen L.",1,3,null,"Keynen L.",null,"Geylen L.",0,3]
[2,"bye",null,"Kuti K.",null,null,null,"Kuti K.",null,"bye"]
[3,"Roofthoofd J.",null,"bye",null,null,null,"bye",null,"Roofthoofd J."]
[4,"Roegiers L.",null,"Geerts P.",2,2,null,"Geerts P.",null,"Roegiers L.",1,3]
[5,"Vermaere L.",null,"Geerts H.",2,2,null,"Geerts H.",null,"Vermaere L.",1,3]
[6,"Crauwels F.",null,"Renty P.",2,2,null,"Renty P.",null,"Crauwels F.",2,2]
[]
[null,"Ronde 6",null,"08/01/2014.",null,null,null,"Ronde 17",null,"23/04/2014."]
[1,"Keynen L.",null,"Renty P.",1,3,null,"Renty P.",null,"Keynen L.",3,1]
[2,"Geerts H.",null,"Crauwels F.",2,2,null,"Crauwels F.",null,"Geerts H.",2,2]
[3,"Geerts P.",null,"Vermaere L.",1,3,null,"Vermaere L.",null,"Geerts P.",1,3]
[4,"bye",null,"Roegiers L.",null,null,null,"Roegiers L.",null,"bye"]
[5,"Kuti K.",null,"Roofthoofd J.",2,2,null,"Roofthoofd J.",null,"Kuti K.",2,2]
[6,"Geylen L.",null,"bye",null,null,null,"bye",null,"Geylen L."]
[]
[null,"Ronde 7",null,"22/01/2014.",null,null,null,"Ronde 18",null,"30/04/2014."]
[1,"bye",null,"Keynen L.",null,null,null,"Keynen L.",null,"bye"]
[2,"Roofthoofd J.",null,"Geylen L.",3,1,null,"Geylen L.",null,"Roofthoofd J.",3,1]
[3,"Roegiers L.",null,"Kuti K.",3,1,null,"Kuti K.",null,"Roegiers L.",3,1]
[4,"Vermaere L.",null,"bye",null,null,null,"bye",null,"Vermaere L."]
[5,"Crauwels F.",null,"Geerts P.",3,1,null,"Geerts P.",null,"Crauwels F.",2,2]
[6,"Renty P.",null,"Geerts H.",1,3,null,"Geerts H.",null,"Renty P.",3,1]
[]
[null,"Ronde 8",null,"29/01/2014.",null,null,null,"Ronde 19",null,"14/05/2014."]
[1,"Keynen L.",null,"Geerts H.",1,3,null,"Geerts H.*",null,"Keynen L.",3,1]
[2,"Geerts P.*",null,"Renty P.",2,2,null,"Renty P.",null,"Geerts P.",2,2]
[3,"bye",null,"Crauwels F.",null,null,null,"Crauwels F.",null,"bye"]
[4,"Kuti K.",null,"Vermaere L.",1,3,null,"Vermaere L.",null,"Kuti K.",2,2]
[5,"Geylen L.",null,"Roegiers L.",2,2,null,"Roegiers L.",null,"Geylen L.",2,2]
[6,"bye",null,"Roofthoofd J.",null,null,null,"Roofthoofd J.",null,"bye"]
[]
[null,"Ronde 9",null,"05/02/2014.",null,null,null,"Ronde 20",null,"21/05/2014."]
[1,"Roofthoofd J.",null,"Keynen L.",2,2,null,"Keynen L.",null,"Roofthoofd J.",1,3]
[2,"Roegiers L.",null,"bye",null,null,null,"bye",null,"Roegiers L."]
[3,"Vermaere L.",null,"Geylen L.",1,3,null,"Geylen L.",null,"Vermaere L.",3,1]
[4,"Crauwels F.",null,"Kuti K.",2,2,null,"Kuti K.",null,"Crauwels F.",2,2]
[5,"Renty P.",null,"bye",null,null,null,"Renty P.",null,"bye"]
[6,"Geerts H.",null,"Geerts P.",2,2,null,"Geerts P.*",null,"Geerts H.",2,2]
[]
[null,"Ronde 10",null,"19/02/2014.",null,null,null,"Ronde 21",null,"28/05/2014."]
[1,"Keynen L.",null,"Geerts P.",3,1,null,"Geerts P.*",null,"Keynen L.",2,2]
[2,"bye",null,"Geerts H.",null,null,null,"Geerts H.",null,"bye"]
[3,"Kuti K.",null,"Renty P.",1,3,null,"Renty P.",null,"Kuti K.",1,3]
[4,"Geylen L.",null,"Crauwels F.",1,3,null,"Crauwels F.",null,"Geylen L.",2,2]
[5,"bye",null,"Vermaere L.",null,null,null,"Vermaere L.",null,"bye"]
[6,"Roofthoofd J.",null,"Roegiers L.",3,1,null,"Roegiers L.",null,"Roofthoofd J.*",2,2]
[]
[null,"Ronde 11",null,"26/02/2014.",null,null,null,"Ronde 22",null,"04/06/2014."]
[1,"Roegiers L.",null,"Keynen L.",3,1,null,"Keynen L.",null,"Roegiers L.",1,3]
[2,"Vermaere L.",null,"Roofthoofd J.",1,3,null,"Roofthoofd J.",null,"Vermaere L.",3,1]
[3,"Crauwels F.",null,"bye",null,null,null,"bye",null,"Crauwels F."]
[4,"Renty P.",null,"Geylen L.",2,2,null,"Geylen L.",null,"Renty P.",3,1]
[5,"Geerts H.",null,"Kuti K.",2,2,null,"Kuti K.",null,"Geerts H.",2,2]
[6,"Geerts P.",null,"bye",null,null,null,"bye",null,"Geerts P."]

{"sheet":"Kal.R4","index":9,"n_rows":89,"n_cols":12,"rows_kept":89,"cut":false,"hidden":false,"merged":[]}
[null,"REEKS 4",null,"2013 - 2014 CK"]
[]
[null,"Ronde 1",null,"13/11/2013.",null,null,null,"Ronde 12",null,"12/03/2014."]
[1,"Ruschke W.",null,"Dardha D.",1,3,null,"Dardha D.",null,"Ruschke W.",3,1]
[2,"Hofman F.",null,"De Groot J.",2,2,null,"De Groot J.",null,"Hofman F.",1,3]
[3,"Lemmens L.",null,"Bruynseels R.",3,1,null,"Bruynseels R.",null,"Lemmens L.",2,2]
[4,"Wouters F.",null,"Lemeire D.",3,1,null,"Lemeire D.",null,"Wouters F.",2,2]
[5,"Soetewey J.",null,"Van der Steen",2,2,null,"Van der Steen",null,"Soetewey J.",3,1]
[6,"De Jonghe J.",null,"Neefs J.",3,1,null,"Neefs J.",null,"De Jonghe J.",3,1]
[null,null,null,null,null,null,null,""]
[null,"Ronde 2",null,"20/11/2013.",null,null,null,"Ronde 13",null,"19/03/2014."]
[1,"Dardha D.",null,"Neefs J.",3,1,null,"Neefs J.",null,"Dardha D.",2,2]
[2,"Van der Steen",null,"De Jonghe J.",1,3,null,"De Jonghe J.",null,"Van der Steen",2,2]
[3,"Lemeire D.",null,"Soetewey J.",3,1,null,"Soetewey J.",null,"Lemeire D.",1,3]
[4,"Bruynseels R.",null,"Wouters F.*",1,3,null,"Wouters F.",null,"Bruynseels R.",1,3]
[5,"De Groot J.",null,"Lemmens L.",3,1,null,"Lemmens L.",null,"De Groot J.",2,2]
[6,"Ruschke W.",null,"Hofman F.",1,3,null,"Hofman F.",null,"Ruschke W.",3,1]
[]
[null,"Ronde 3",null,"27/11/2013.",null,null,null,"Ronde 14",null,"26/03/2014."]
[1,"Hofman F.",null,"Dardha D.",3,1,null,"Dardha D.",null,"Hofman F.",3,1]
[2,"Lemmens L.",null,"Ruschke W.",3,1,null,"Ruschke W.",null,"Lemmens L.",1,3]
[3,"Wouters F.",null,"De Groot J.",1,3,null,"De Groot J.",null,"Wouters F.",3,1]
[4,"Soetewey J.",null,"Bruynseels R.",2,2,null,"Bruynseels R.",null,"Soetewey J.",3,1]
[5,"De Jonghe J.",null,"Lemeire D.",3,1,null,"Lemeire D.",null,"De Jonghe J.",3,1]
[6,"Neefs J.",null,"Van der Steen",1,3,null,"Van der Steen",null,"Neefs J.",3,1]
[]
[null,"Ronde 4",null,"11/12/2013.",null,null,null,"Ronde 15",null,"02/04/2014."]
[1,"Dardha D.",null,"Van der Steen*",3,1,null,"Van der Steen",null,"Dardha D.",1,3]
[2,"Lemeire D.",null,"Neefs J.",1,3,null,"Neefs J.",null,"Lemeire D.",2,2]
[3,"Bruynseels R.",null,"De Jonghe J.",3,1,null,"De Jonghe J.",null,"Bruynseels R.",1,3]
[4,"De Groot J.",null,"Soetewey J.",3,1,null,"Soetewey J.",null,"De Groot J.",2,2]
[5,"Ruschke W.",null,"Wouters F.",1,3,null,"Wouters F.",null,"Ruschke W.",3,1]
[6,"Hofman F.",null,"Lemmens L.",1,3,null,"Lemmens L.",null,"Hofman F.",2,2]
[]
[null,"Ronde 5",null,"18/12/2013.",null,null,null,"Ronde 16",null,"16/04/2014."]
[1,"Lemmens L.",null,"Dardha D.*",2,2,null,"Dardha D.",null,"Lemmens L.",3,1]
[2,"Wouters F.",null,"Hofman F.",2,2,null,"Hofman F.",null,"Wouters F.",2,2]
[3,"Soetewey J.",null,"Ruschke W.",3,1,null,"Ruschke W.",null,"Soetewey J.",1,3]
[4,"De Jonghe J.",null,"De Groot J.",3,1,null,"De Groot J.",null,"De Jonghe J.",3,1]
[5,"Neefs J.",null,"Bruynseels R.*",1,3,null,"Bruynseels R.",null,"Neefs J.",3,1]
[6,"Van der Steen",null,"Lemeire D.*",2,2,null,"Lemeire D.",null,"Van der Steen",1,3]
[]
[null,"Ronde 6",null,"08/01/2014.",null,null,null,"Ronde 17",null,"23/04/2014."]
[1,"Dardha D.",null,"Lemeire D.",3,1,null,"Lemeire D.",null,"Dardha D.",1,3]
[2,"Bruynseels R.",null,"Van der Steen",3,1,null,"Van der Steen",null,"Bruynseels R.",3,1]
[3,"De Groot J.",null,"Neefs J.",1,3,null,"Neefs J.",null,"De Groot J.",2,2]
[4,"Ruschke W.",null,"De Jonghe J.",1,3,null,"De Jonghe J.",null,"Ruschke W.",3,1]
[5,"Hofman F.",null,"Soetewey J.",1,3,null,"Soetewey J.",null,"Hofman F.",3,1]
[6,"Lemmens L.",null,"Wouters F.",2,2,null,"Wouters F.",null,"Lemmens L.",2,2]
[]
[null,"Ronde 7",null,"22/01/2014.",null,null,null,"Ronde 18",null,"30/04/2014."]
[1,"Wouters F.",null,"Dardha D.",2,2,null,"Dardha D.",null,"Wouters F.",3,1]
[2,"Soetewey J.",null,"Lemmens L.",1,3,null,"Lemmens L.",null,"Soetewey J.",3,1]
[3,"De Jonghe J.",null,"Hofman F.",3,1,null,"Hofman F.",null,"De Jonghe J.",2,2]
[4,"Neefs J.",null,"Ruschke W.",3,1,null,"Ruschke W.",null,"Neefs J.",1,3]
[5,"Van der Steen",null,"De Groot J.",1,3,null,"De Groot J.",null,"Van der Steen",2,2]
[6,"Lemeire D.",null,"Bruynseels R.",3,1,null,"Bruynseels R.",null,"Lemeire D.",1,3]
[]
[null,"Ronde 8",null,"29/01/2014.",null,null,null,"Ronde 19",null,"14/05/2014."]
[1,"Dardha D.",null,"Bruynseels R.",3,1,null,"Bruynseels R.*",null,"Dardha D.",2,2]
[2,"De Groot J.",null,"Lemeire D.",3,1,null,"Lemeire D.",null,"De Groot J.",3,1]
[3,"Ruschke W.",null,"Van der Steen",2,2,null,"Van der Steen",null,"Ruschke W.",3,1]
[4,"Hofman F.",null,"Neefs J.",2,2,null,"Neefs J.",null,"Hofman F.",1,3]
[5,"Lemmens L.",null,"De Jonghe J.",1,3,null,"De Jonghe J.",null,"Lemmens L.",2,2]
[6,"Wouters F.",null,"Soetewey J.",2,2,null,"Soetewey J.",null,"Wouters F.",2,2]
[]
[null,"Ronde 9",null,"05/02/2014.",null,null,null,"Ronde 20",null,"21/05/2014."]
[1,"Soetewey J.",null,"Dardha D.",1,3,null,"Dardha D.",null,"Soetewey J.",3,1]
[2,"De Jonghe J.",null,"Wouters F.",3,1,null,"Wouters F.",null,"De Jonghe J.",3,1]
[3,"Neefs J.",null,"Lemmens L.",2,2,null,"Lemmens L.",null,"Neefs J.",2,2]
[4,"Van der Steen",null,"Hofman F.",3,1,null,"Hofman F.",null,"Van der Steen",1,3]
[5,"Lemeire D.",null,"Ruschke W.",3,1,null,"Ruschke W.",null,"Lemeire D.",2,2]
[6,"Bruynseels R.",null,"De Groot J.",3,1,null,"De Groot J.",null,"Bruynseels R.",3,1]
[]
[null,"Ronde 10",null,"19/02/2014.",null,null,null,"Ronde 21",null,"28/05/2014."]
[1,"Dardha D.",null,"De Groot J.",3,1,null,"De Groot J.",null,"Dardha D.",3,1]
[2,"Ruschke W.",null,"Bruynseels R.",1,3,null,"Bruynseels R.",null,"Ruschke W.",3,1]
[3,"Hofman F.",null,"Lemeire D.",3,1,null,"Lemeire D.",null,"Hofman F.",2,2]
[4,"Lemmens L.",null,"Van der Steen",1,3,null,"Van der Steen*",null,"Lemmens L.",2,2]
[5,"Wouters F.",null,"Neefs J.",1,3,null,"Neefs J.",null,"Wouters F.",3,1]
[6,"Soetewey J.",null,"De Jonghe J.",2,2,null,"De Jonghe J.",null,"Soetewey J.",1,3]
[]
[null,"Ronde 11",null,"26/02/2014.",null,null,null,"Ronde 22",null,"04/06/2014."]
[1,"De Jonghe J.",null,"Dardha D.",1,3,null,"Dardha D.",null,"De Jonghe J.",3,1]
[2,"Neefs J.",null,"Soetewey J.",3,1,null,"Soetewey J.",null,"Neefs J.",3,1]
[3,"Van der Steen",null,"Wouters F.",2,2,null,"Wouters F.",null,"Van der Steen",1,3]
[4,"Lemeire D.",null,"Lemmens L.",2,2,null,"Lemmens L.",null,"Lemeire D.",2,2]
[5,"Bruynseels R.",null,"Hofman F.",1,3,null,"Hofman F.",null,"Bruynseels R.",3,1]
[6,"De Groot J.",null,"Ruschke W.",3,1,null,"Ruschke W.",null,"De Groot J.",0,3]

{"sheet":"Kal.R5","index":10,"n_rows":89,"n_cols":12,"rows_kept":89,"cut":false,"hidden":false,"merged":[]}
[null,"REEKS 5",null,"2013 - 2014 CK"]
[]
[null,"Ronde 1",null,"13/11/2013.",null,null,null,"Ronde 12",null,"12/03/2014."]
[1,"Pynaerts H.",null,"Van Dyck Y.",3,1,null,"Van Dyck Y.",null,"Pynaerts H.",1,3]
[2,"Meeus J.",null,"Goddé P.",1,3,null,"Goddé P.",null,"Meeus J.",2,2]
[3,"Hellemans R.",null,"Goddé M.",2,2,null,"Goddé M.",null,"Hellemans R.",3,1]
[4,"Brants R.",null,"Mertens F.",1,3,null,"Mertens F.",null,"Brants R.",3,1]
[5,"Daponte P.",null,"Vingerhoets W.",3,1,null,"Vingerhoets W.",null,"Daponte P.",1,3]
[6,"Ilegems J.",null,"Meulemeester",3,1,null,"Meulemeester",null,"Ilegems J.",3,1]
[null,null,null,null,null,null,null,""]
[null,"Ronde 2",null,"20/11/2013.",null,null,null,"Ronde 13",null,"19/03/2014."]
[1,"Van Dyck Y.",null,"Meulemeester",1,3,null,"Meulemeester",null,"Van Dyck Y.",1,3]
[2,"Vingerhoets W.",null,"Ilegems J.",3,1,null,"Ilegems J.",null,"Vingerhoets W.",3,1]
[3,"Mertens F.",null,"Daponte P.",3,1,null,"Daponte P.",null,"Mertens F.",1,3]
[4,"Goddé M.",null,"Brants R.",3,1,null,"Brants R.",null,"Goddé M.",1,3]
[5,"Goddé P.",null,"Hellemans R.",2,2,null,"Hellemans R.",null,"Goddé P.",1,3]
[6,"Pynaerts H.",null,"Meeus J.",1,3,null,"Meeus J.",null,"Pynaerts H.",3,1]
[]
[null,"Ronde 3",null,"27/11/2013.",null,null,null,"Ronde 14",null,"26/03/2014."]
[1,"Meeus J.",null,"Van Dyck Y.*",2,2,null,"Van Dyck Y.",null,"Meeus J.",1,3]
[2,"Hellemans R.",null,"Pynaerts H.",1,3,null,"Pynaerts H.",null,"Hellemans R.",2,2]
[3,"Brants R.",null,"Goddé P.",3,1,null,"Goddé P.",null,"Brants R.",3,1]
[4,"Daponte P.",null,"Goddé M.",1,3,null,"Goddé M.",null,"Daponte P.",3,1]
[5,"Ilegems J.",null,"Mertens F.",1,3,null,"Mertens F.",null,"Ilegems J.",3,1]
[6,"Meulemeester",null,"Vingerhoets W.",2,2,null,"Vingerhoets W.",null,"Meulemeester",2,2]
[]
[null,"Ronde 4",null,"11/12/2013.",null,null,null,"Ronde 15",null,"02/04/2014."]
[1,"Van Dyck Y.",null,"Vingerhoets W.",3,1,null,"Vingerhoets W.",null,"Van Dyck Y.",1,3]
[2,"Mertens F.",null,"Meulemeester",3,1,null,"Meulemeester",null,"Mertens F.",3,1]
[3,"Goddé M.",null,"Ilegems J.",3,1,null,"Ilegems J.",null,"Goddé M.",1,3]
[4,"Goddé P.",null,"Daponte P.",1,3,null,"Daponte P.",null,"Goddé P.",1,3]
[5,"Pynaerts H.",null,"Brants R.",3,1,null,"Brants R.",null,"Pynaerts H.",1,3]
[6,"Meeus J.",null,"Hellemans R.",3,1,null,"Hellemans R.",null,"Meeus J.",2,2]
[]
[null,"Ronde 5",null,"18/12/2013.",null,null,null,"Ronde 16",null,"16/04/2014."]
[1,"Hellemans R.",null,"Van Dyck Y.",2,2,null,"Van Dyck Y.",null,"Hellemans R.",3,1]
[2,"Brants R.",null,"Meeus J.",2,2,null,"Meeus J.",null,"Brants R.",2,2]
[3,"Daponte P.",null,"Pynaerts H.",1,3,null,"Pynaerts H.",null,"Daponte P.",1,3]
[4,"Ilegems J.",null,"Goddé P.",1,3,null,"Goddé P.",null,"Ilegems J.",3,1]
[5,"Meulemeester",null,"Goddé M.",1,3,null,"Goddé M.",null,"Meulemeester",3,1]
[6,"Vingerhoets W.",null,"Mertens F.",3,1,null,"Mertens F.",null,"Vingerhoets W.",1,3]
[]
[null,"Ronde 6",null,"08/01/2014.",null,null,null,"Ronde 17",null,"23/04/2014."]
[1,"Van Dyck Y.*",null,"Mertens F.",1,3,null,"Mertens F.",null,"Van Dyck Y.",3,1]
[2,"Goddé M.",null,"Vingerhoets W.",3,1,null,"Vingerhoets W.",null,"Goddé M.",2,2]
[3,"Goddé P.",null,"Meulemeester",3,1,null,"Meulemeester",null,"Goddé P.",2,2]
[4,"Pynaerts H.",null,"Ilegems J.",3,1,null,"Ilegems J.",null,"Pynaerts H.",3,1]
[5,"Meeus J.",null,"Daponte P.",3,1,null,"Daponte P.",null,"Meeus J.",1,3]
[6,"Hellemans R.",null,"Brants R.",3,1,null,"Brants R.",null,"Hellemans R.",3,1]
[]
[null,"Ronde 7",null,"22/01/2014.",null,null,null,"Ronde 18",null,"30/04/2014."]
[1,"Brants R.",null,"Van Dyck Y.",1,3,null,"Van Dyck Y.",null,"Brants R.",1,3]
[2,"Daponte P.",null,"Hellemans R.",1,3,null,"Hellemans R.",null,"Daponte P.",2,2]
[3,"Ilegems J.",null,"Meeus J.",1,3,null,"Meeus J.",null,"Ilegems J.",1,3]
[4,"Meulemeester",null,"Pynaerts H.",3,1,null,"Pynaerts H.",null,"Meulemeester",3,1]
[5,"Vingerhoets W.",null,"Goddé P.",1,3,null,"Goddé P.",null,"Vingerhoets W.",3,1]
[6,"Mertens F.",null,"Goddé M.",1,3,null,"Goddé M.",null,"Mertens F.",3,1]
[]
[null,"Ronde 8",null,"29/01/2014.",null,null,null,"Ronde 19",null,"14/05/2014."]
[1,"Van Dyck Y.",null,"Goddé M.",1,3,null,"Goddé M.",null,"Van Dyck Y.",3,1]
[2,"Goddé P.*",null,"Mertens F.",1,3,null,"Mertens F.",null,"Goddé P.",3,1]
[3,"Pynaerts H.",null,"Vingerhoets W.",1,3,null,"Vingerhoets W.",null,"Pynaerts H.",1,3]
[4,"Meeus J.",null,"Meulemeester",3,1,null,"Meulemeester*",null,"Meeus J.*",1,3]
[5,"Hellemans R.*",null,"Ilegems J.",3,1,null,"Ilegems J.",null,"Hellemans R.",3,1]
[6,"Brants R.",null,"Daponte P.",3,1,null,"Daponte P.",null,"Brants R.",3,1]
[]
[null,"Ronde 9",null,"05/02/2014.",null,null,null,"Ronde 20",null,"21/05/2014."]
[1,"Daponte P.",null,"Van Dyck Y.",3,1,null,"Van Dyck Y.*",null,"Daponte P.",3,1]
[2,"Ilegems J.",null,"Brants R.",1,3,null,"Brants R.",null,"Ilegems J.",1,3]
[3,"Meulemeester",null,"Hellemans R.",2,2,null,"Hellemans R.*",null,"Meulemeester",2,2]
[4,"Vingerhoets W.",null,"Meeus J.",2,2,null,"Meeus J.",null,"Vingerhoets W.",3,1]
[5,"Mertens F.",null,"Pynaerts H.",2,2,null,"Pynaerts H.",null,"Mertens F.",1,3]
[6,"Goddé M.",null,"Goddé P.",3,1,null,"Goddé P.",null,"Goddé M.",1,3]
[]
[null,"Ronde 10",null,"19/02/2014.",null,null,null,"Ronde 21",null,"28/05/2014."]
[1,"Van Dyck Y.",null,"Goddé P.",3,1,null,"Goddé P.",null,"Van Dyck Y.",3,1]
[2,"Pynaerts H.",null,"Goddé M.",1,3,null,"Goddé M.",null,"Pynaerts H.",3,1]
[3,"Meeus J.",null,"Mertens F.",1,3,null,"Mertens F.",null,"Meeus J.",1,3]
[4,"Hellemans R.",null,"Vingerhoets W.",2,2,null,"Vingerhoets W.",null,"Hellemans R.",2,2]
[5,"Brants R.",null,"Meulemeester",1,3,null,"Meulemeester",null,"Brants R.",3,1]
[6,"Daponte P.",null,"Ilegems J.",3,1,null,"Ilegems J.",null,"Daponte P.",3,1]
[]
[null,"Ronde 11",null,"26/02/2014.",null,null,null,"Ronde 22",null,"04/06/2014."]
[1,"Ilegems J.",null,"Van Dyck Y.",2,2,null,"Van Dyck Y.",null,"Ilegems J.",3,1]
[2,"Meulemeester",null,"Daponte P.",1,3,null,"Daponte P.",null,"Meulemeester",1,3]
[3,"Vingerhoets W.",null,"Brants R.",1,3,null,"Brants R.",null,"Vingerhoets W.",3,1]
[4,"Mertens F.",null,"Hellemans R.",3,1,null,"Hellemans R.",null,"Mertens F.",3,1]
[5,"Goddé M.",null,"Meeus J.",3,1,null,"Meeus J.",null,"Goddé M.",2,2]
[6,"Goddé P.",null,"Pynaerts H.",1,3,null,"Pynaerts H.",null,"Goddé P.",2,2]

{"sheet":"Kal.R6","index":11,"n_rows":89,"n_cols":12,"rows_kept":89,"cut":false,"hidden":false,"merged":[]}
[null,"REEKS 6",null,"2013 - 2014 CK"]
[]
[null,"Ronde 1",null,"13/11/2013.",null,null,null,"Ronde 12",null,"12/03/2014."]
[1,"Brack Y.",null,"Heyndrickx R.",1,3,null,"Heyndrickx R.",null,"Brack Y.","/","/"]
[2,"bye",null,"Lens L.",null,null,null,"Lens L.",null,"bye"]
[3,"Leys F.",null,"Dams L.*",2,2,null,"Dams L.",null,"Leys F.","/","/"]
[4,"Uyt d. Bogaard",null,"bye",null,null,null,"bye",null,"Uyt d. Bogaard"]
[5,"Vervaeke P.",null,"V.D.Branden",1,3,null,"V.D.Branden",null,"Vervaeke P.",3,1]
[6,"Van Tendeloo",null,"Roelants W.",1,3,null,"Roelants W.",null,"Van Tendeloo",3,1]
[null,null,null,null,null,null,null,""]
[null,"Ronde 2",null,"20/11/2013.",null,null,null,"Ronde 13",null,"19/03/2014."]
[1,"Heyndrickx R.",null,"Roelants W.",3,1,null,"Roelants W.",null,"Heyndrickx R.",3,1]
[2,"V.D.Branden",null,"Van Tendeloo",1,3,null,"Van Tendeloo",null,"V.D.Branden",3,1]
[3,"bye",null,"Vervaeke P.",null,null,null,"Vervaeke P.",null,"bye"]
[4,"Dams L.",null,"Uyt d. Bogaard",3,1,null,"Uyt d. Bogaard",null,"Dams L.","/","/"]
[5,"Lens L.",null,"Leys F.",3,1,null,"Leys F.",null,"Lens L.",3,1]
[6,"Brack Y.",null,"bye",null,null,null,"bye",null,"Brack Y."]
[]
[null,"Ronde 3",null,"27/11/2013.",null,null,null,"Ronde 14",null,"26/03/2014."]
[1,"bye",null,"Heyndrickx R.",null,null,null,"Heyndrickx R.",null,"bye"]
[2,"Leys F.",null,"Brack Y.",1,3,null,"Brack Y.",null,"Leys F.","/","/"]
[3,"Uyt d. Bogaard",null,"Lens L.",1,3,null,"Lens L.",null,"Uyt d. Bogaard",2,2]
[4,"Vervaeke P.",null,"Dams L.",3,1,null,"Dams L.",null,"Vervaeke P.","/","/"]
[5,"Van Tendeloo",null,"bye",null,null,null,"bye",null,"Van Tendeloo"]
[6,"Roelants W.",null,"V.D.Branden",1,3,null,"V.D.Branden",null,"Roelants W.",3,1]
[]
[null,"Ronde 4",null,"11/12/2013.",null,null,null,"Ronde 15",null,"02/04/2014."]
[1,"Heyndrickx R.",null,"V.D.Branden",3,1,null,"V.D.Branden",null,"Heyndrickx R.",1,3]
[2,"bye",null,"Roelants W.",null,null,null,"Roelants W.",null,"bye"]
[3,"Dams L.",null,"Van Tendeloo",3,1,null,"Van Tendeloo",null,"Dams L.","/","/"]
[4,"Lens L.",null,"Vervaeke P.",1,3,null,"Vervaeke P.",null,"Lens L.",1,3]
[5,"Brack Y.",null,"Uyt d Bogaard*",3,1,null,"Uyt d. Bogaard",null,"Brack Y.","/","/"]
[6,"bye",null,"Leys F.",null,null,null,"Leys F.",null,"bye"]
[]
[null,"Ronde 5",null,"18/12/2013.",null,null,null,"Ronde 16",null,"16/04/2014."]
[1,"Leys F.",null,"Heyndrickx R.",3,1,null,"Heyndrickx R.",null,"Leys F.",1,3]
[2,"Uyt d. Bogaard",null,"bye",null,null,null,"bye",null,"Uyt d. Bogaard"]
[3,"Vervaeke P.",null,"Brack Y.",1,3,null,"Brack Y.",null,"Vervaeke P.","/","/"]
[4,"Van Tendeloo",null,"Lens L.",2,2,null,"Lens L.",null,"Van Tendeloo",2,2]
[5,"Roelants W.",null,"Dams L.",1,3,null,"Dams L.",null,"Roelants W.","/","/"]
[6,"V.D.Branden",null,"bye",null,null,null,"bye",null,"V.D.Branden"]
[]
[null,"Ronde 6",null,"08/01/2014.",null,null,null,"Ronde 17",null,"23/04/2014."]
[1,"Heyndrickx R.",null,"bye",null,null,null,"bye",null,"Heyndrickx R."]
[2,"Dams L.",null,"V.D.Branden",3,0,null,"V.D.Branden",null,"Dams L.","/","/"]
[3,"Lens L.",null,"Roelants W.",3,1,null,"Roelants W.",null,"Lens L.",3,1]
[4,"Brack Y.",null,"Van Tendeloo",3,1,null,"Van Tendeloo",null,"Brack Y.","/","/"]
[5,"bye",null,"Vervaeke P.",null,null,null,"Vervaeke P.",null,"bye"]
[6,"Leys F.",null,"Uyt d. Bogaard",3,1,null,"Uyt d. Bogaard",null,"Leys F.",1,3]
[]
[null,"Ronde 7",null,"22/01/2014.",null,null,null,"Ronde 18",null,"30/04/2014."]
[1,"Uyt d. Bogaard",null,"Heyndrickx R.",3,1,null,"Heyndrickx R.",null,"Uyt d. Bogaard",2,2]
[2,"Vervaeke P.",null,"Leys F.",1,3,null,"Leys F.",null,"Vervaeke P.",3,1]
[3,"Van Tendeloo",null,"bye",null,null,null,"bye",null,"Van Tendeloo"]
[4,"Roelants W.",null,"Brack Y.*",3,1,null,"Brack Y.",null,"Roelants W.","/","/"]
[5,"V.D.Branden",null,"Lens L.",1,3,null,"Lens L.",null,"V.D.Branden",3,0]
[6,"bye",null,"Dams L.",null,null,null,"Dams L.",null,"bye"]
[]
[null,"Ronde 8",null,"29/01/2014.",null,null,null,"Ronde 19",null,"14/05/2014."]
[1,"Heyndrickx R.",null,"Dams L.",3,1,null,"Dams L.*",null,"Heyndrickx R.","/","/"]
[2,"Lens L.",null,"bye",null,null,null,"bye",null,"Lens L."]
[3,"Brack Y.",null,"V.D.Branden",3,1,null,"V.D.Branden",null,"Brack Y.*","/","/"]
[4,"bye",null,"Roelants W.",null,null,null,"Roelants W.",null,"bye"]
[5,"Leys F.",null,"Van Tendeloo",3,1,null,"Van Tendeloo",null,"Leys F.",1,3]
[6,"Uyt d. Bogaard",null,"Vervaeke P.",1,3,null,"Vervaeke P.",null,"Uyt d. Bogaard",3,1]
[]
[null,"Ronde 9",null,"05/02/2014.",null,null,null,"Ronde 20",null,"21/05/2014."]
[1,"Vervaeke P.",null,"Heyndrickx R.",1,3,null,"Heyndrickx R.",null,"Vervaeke P.",1,3]
[2,"Van Tendeloo",null,"Uyt d. Bogaard",2,2,null,"Uyt d. Bogaard*",null,"Van Tendeloo",1,3]
[3,"Roelants W.",null,"Leys F.",1,3,null,"Leys F.",null,"Roelants W.",3,1]
[4,"V.D.Branden",null,"bye",null,null,null,"bye",null,"V.D.Branden"]
[5,"bye",null,"Brack Y.",null,null,null,"Brack Y.",null,"bye"]
[6,"Dams L.",null,"Lens L.",3,1,null,"Lens L.",null,"Dams L.*","/","/"]
[]
[null,"Ronde 10",null,"19/02/2014.",null,null,null,"Ronde 21",null,"28/05/2014."]
[1,"Heyndrickx R.",null,"Lens L.",3,1,null,"Lens L.",null,"Heyndrickx R.",1,3]
[2,"Brack Y.",null,"Dams L.",1,3,null,"Dams L.*",null,"Brack Y.","/","/"]
[3,"bye",null,"bye",null,null,null,"bye",null,"bye"]
[4,"Leys F.",null,"V.D.Branden",1,3,null,"V.D.Branden",null,"Leys F.",1,3]
[5,"Uyt d. Bogaard",null,"Roelants W.",3,1,null,"Roelants W.",null,"Uyt d. Bogaard",3,1]
[6,"Vervaeke P.",null,"Van Tendeloo",3,1,null,"Van Tendeloo",null,"Vervaeke P.*",2,2]
[]
[null,"Ronde 11",null,"26/02/2014.",null,null,null,"Ronde 22",null,"04/06/2014."]
[1,"Van Tendeloo",null,"Heyndrickx R.",3,1,null,"Heyndrickx R.",null,"Van Tendeloo",2,2]
[2,"Roelants W.",null,"Vervaeke P.",1,3,null,"Vervaeke P.",null,"Roelants W.",1,3]
[3,"V.D.Branden",null,"Uyt d. Bogaard",2,2,null,"Uyt d. Bogaard",null,"V.D.Branden",2,2]
[4,"bye",null,"Leys F.",null,null,null,"Leys F.",null,"bye"]
[5,"Dams L.",null,"bye",null,null,null,"bye",null,"Dams L."]
[6,"Lens L.",null,"Brack Y.",3,1,null,"Brack Y.",null,"Lens L.","/","/"]